[Event "Is Bankasi Online Satranc Turn 17-18 YAS"]
[Site "T#646243Mustafa Kemal"]
[Date "2020.05.22"]
[Round "5"]
[White "Huseyinazizcak12"]
[Black "Emrecankaratas76"]
[Result "0-1"]
[WhiteElo "1644"]
[BlackElo "1636"]
[Annotator "NA RC"]
[PlyCount "68"]
[EventDate "2020.05.22"]
[EventType "swiss (blitz)"]
[TimeControl "180+2"]

1. e4 {[%emt 0:00:01]} e5 {[%emt 0:00:03]} 2. Nf3 {[%emt 0:00:02]} Nc6 {[%emt 0:00:02]} 3. d4 {[%emt 0:00:05]} exd4 {[%emt 0:00:07]} 4. Nxd4 {[%emt 0:00:02]} Be7 {[%emt 0:00:04]} 5. Nxc6 {[%emt 0:00:02]} dxc6 {[%emt 0:00:01]} 6. Qxd8+ {[%emt 0:00:04]} Bxd8 {[%emt 0:00:00]} 7. Bc4 {[%emt 0:00:08]} Nf6 {[%emt 0:00:13]} 8. Nc3 {[%emt 0:00:14]} O-O {[%emt 0:00:18]} 9. f3 {[%emt 0:00:46]} Re8 {[%emt 0:00:09]} 10. Bd2 {[%emt 0:00:03]} Be6 {[%emt 0:00:01]} 11. Bxe6 {[%emt 0:00:09]} Rxe6 {[%emt 0:00:00]} 12. O-O-O {[%emt 0:00:04]} Be7 {[%emt 0:00:09]} 13. Bg5 {[%emt 0:00:09]} h6 {[%emt 0:00:13]} 14. Bf4 {[%emt 0:00:06]} Rc8 {[%emt 0:00:08]} 15. Be3 {[%emt 0:00:02]} b6 {[%emt 0:00:06]} 16. h4 {[%emt 0:00:31]} Bb4 {[%emt 0:00:04]} 17. Na4 {[%emt 0:00:14]} Nh5 {[%emt 0:00:28]} 18. a3 {[%emt 0:00:07]} Bd6 {[%emt 0:00:15]} 19. Nc3 {[%emt 0:00:10]} Ng3 {[%emt 0:00:12]} 20. Rh3 {[%emt 0:00:15]} Nh5 {[%emt 0:00:05]} 21. g4 {[%emt 0:00:12]} Nf4 {[%emt 0:00:13]} 22. Bxf4 {[%emt 0:00:02]} Bxf4+ {[%emt 0:00:01]} 23. Kb1 {[%emt 0:00:10]} Rce8 {[%emt 0:00:05]} 24. Re1 {[%emt 0:00:04]} Bd2 {[%emt 0:00:02]} 25. Re2 {[%emt 0:00:03]} Bxc3 {[%emt 0:00:03]} 26. bxc3 {[%emt 0:00:02]} g6 {[%emt 0:00:03]} 27. h5 {[%emt 0:00:02]} g5 {[%emt 0:00:03]} 28. Rf2 {[%emt 0:00:02]} Rf6 {[%emt 0:00:03]} 29. Rg3 {[%emt 0:00:03]} Rxe4 {[%emt 0:00:04]} 30. fxe4 {[%emt 0:00:04]} Rxf2 {[%emt 0:00:01]} 31. Rd3 {[%emt 0:00:03]} Rf1+ {[%emt 0:00:02]} 32. Kb2 {[%emt 0:00:02]} Rf4 {[%emt 0:00:01]} 33. Rd7 {[%emt 0:00:03]} Rxe4 {[%emt 0:00:04]} 34. Rxc7 {[%emt 0:00:02]} Rxg4 {[%emt 0:00:01] Zaman (Lag: Av=0.56s, max=2.0s)} 0-1

[Event "Is Bankasi Online Satranc Turn 17-18 YAS"]
[Site "T#646243Mustafa Kemal"]
[Date "2020.05.22"]
[Round "5"]
[White "Kutayozkurt40"]
[Black "Merttosun42"]
[Result "1-0"]
[WhiteElo "1636"]
[BlackElo "1666"]
[Annotator "NA RC"]
[PlyCount "57"]
[EventDate "2020.05.22"]
[EventType "swiss (blitz)"]
[TimeControl "180+2"]

1. e4 {[%emt 0:00:02]} e5 {[%emt 0:00:03]} 2. Nf3 {[%emt 0:00:01]} Nc6 {[%emt 0:00:01]} 3. d4 {[%emt 0:00:01]} exd4 {[%emt 0:00:01]} 4. Bc4 {[%emt 0:00:00]} Bc5 {[%emt 0:00:02]} 5. c3 {[%emt 0:00:02]} dxc3 {[%emt 0:00:04]} 6. O-O {[%emt 0:00:01]} Nge7 {[%emt 0:00:07]} 7. Ng5 {[%emt 0:00:37]} O-O {[%emt 0:00:03]} 8. Qh5 {[%emt 0:00:02]} h6 {[%emt 0:00:09]} 9. Nxf7 {[%emt 0:00:02]} Rxf7 {[%emt 0:00:27]} 10. Bxf7+ {[%emt 0:00:03]} Kf8 {[%emt 0:00:06]} 11. Nxc3 {[%emt 0:00:04]} d5 {[%emt 0:00:11]} 12. exd5 {[%emt 0:00:04]} Nd4 {[%emt 0:00:09]} 13. Bg6 {[%emt 0:00:12]} Nxg6 {[%emt 0:00:09]} 14. Qxg6 {[%emt 0:00:00]} Bf5 {[%emt 0:00:06]} 15. Qg3 {[%emt 0:00:04]} Bb4 {[%emt 0:00:09]} 16. Qf4 {[%emt 0:00:06]} Bxc3 {[%emt 0:00:04]} 17. Kh1 {[%emt 0:00:07]} Bxb2 {[%emt 0:01:06]} 18. Bxb2 {[%emt 0:00:04]} Qf6 {[%emt 0:00:02]} 19. Bxd4 {[%emt 0:00:06]} Qg6 {[%emt 0:00:08]} 20. g4 {[%emt 0:00:08]} Qxg4 {[%emt 0:00:05]} 21. Qxg4 {[%emt 0:00:04]} Bxg4 {[%emt 0:00:01]} 22. f4 {[%emt 0:00:01]} Re8 {[%emt 0:00:02]} 23. Rae1 {[%emt 0:00:03]} Rd8 {[%emt 0:00:02]} 24. Re5 {[%emt 0:00:03]} c6 {[%emt 0:00:08]} 25. Bc5+ {[%emt 0:00:04]} Kg8 {[%emt 0:00:02]} 26. d6 {[%emt 0:00:01]} Bd7 {[%emt 0:00:03]} 27. Rfe1 {[%emt 0:00:02]} Kh7 {[%emt 0:00:03]} 28. Re7 {[%emt 0:00:03]} b6 {[%emt 0:00:04]} 29. Bd4 {[%emt 0:00:01] Merttosun42 terk eder (Lag: Av=0.56s, max=0.8s)} 1-0

[Event "Is Bankasi Online Satranc Turn 17-18 YAS"]
[Site "T#646243Mustafa Kemal"]
[Date "2020.05.22"]
[Round "5"]
[White "Ahmetay38"]
[Black "Mustafaberkayb82"]
[Result "0-1"]
[WhiteElo "1620"]
[BlackElo "1502"]
[Annotator "NA RC"]
[PlyCount "106"]
[EventDate "2020.05.22"]
[EventType "swiss (blitz)"]
[TimeControl "180+2"]

1. d4 {[%emt 0:00:05]} d5 {[%emt 0:00:01]} 2. c4 {[%emt 0:00:02]} Nf6 {[%emt 0:00:29]} 3. Nc3 {[%emt 0:00:02]} e6 {[%emt 0:00:02]} 4. Nf3 {[%emt 0:00:04]} Bb4 {[%emt 0:00:03]} 5. Bd2 {[%emt 0:00:06]} a6 {[%emt 0:00:04]} 6. e3 {[%emt 0:00:05]} Bd7 {[%emt 0:00:07]} 7. a3 {[%emt 0:00:09]} Bxc3 {[%emt 0:00:06]} 8. Bxc3 {[%emt 0:00:00]} b5 {[%emt 0:00:03]} 9. cxb5 {[%emt 0:00:22]} axb5 {[%emt 0:00:04]} 10. Bb4 {[%emt 0:00:09]} Na6 {[%emt 0:00:09]} 11. Ba5 {[%emt 0:00:07]} O-O {[%emt 0:00:09]} 12. Ne5 {[%emt 0:00:06]} Nc5 {[%emt 0:00:20]} 13. Bb4 {[%emt 0:00:04]} Qe7 {[%emt 0:00:15]} 14. Qc2 {[%emt 0:00:09]} Nfe4 {[%emt 0:00:19]} 15. Bd3 {[%emt 0:00:12]} f6 {[%emt 0:00:05]} 16. Nxd7 {[%emt 0:00:06]} Qxd7 {[%emt 0:00:00]} 17. Bxe4 {[%emt 0:00:04]} dxe4 {[%emt 0:00:10]} 18. Bxc5 {[%emt 0:00:01]} Rfd8 {[%emt 0:00:11]} 19. Qxe4 {[%emt 0:00:21]} e5 {[%emt 0:00:08]} 20. O-O {[%emt 0:00:07]} Ra4 {[%emt 0:00:06]} 21. Rad1 {[%emt 0:00:05]} Qf7 {[%emt 0:00:09]} 22. Rd3 {[%emt 0:00:09]} Qc4 {[%emt 0:00:08]} 23. b3 {[%emt 0:00:05]} f5 {[%emt 0:00:14]} 24. bxc4 {[%emt 0:00:03]} fxe4 {[%emt 0:00:01]} 25. Rb3 {[%emt 0:00:13]} bxc4 {[%emt 0:00:07]} 26. Rc3 {[%emt 0:00:07]} exd4 {[%emt 0:00:15]} 27. exd4 {[%emt 0:00:01]} Rda8 {[%emt 0:00:02]} 28. Re1 {[%emt 0:00:09]} Rd8 {[%emt 0:00:01]} 29. Rxe4 {[%emt 0:00:02]} Ra6 {[%emt 0:00:02]} 30. f3 {[%emt 0:00:01]} Rg6 {[%emt 0:00:03]} 31. g3 {[%emt 0:00:04]} c6 {[%emt 0:00:01]} 32. a4 {[%emt 0:00:04]} Rf6 {[%emt 0:00:02]} 33. f4 {[%emt 0:00:11]} Ra8 {[%emt 0:00:02]} 34. Rxc4 {[%emt 0:00:05]} Ra5 {[%emt 0:00:01]} 35. Bb6 {[%emt 0:00:03]} Ra6 {[%emt 0:00:02]} 36. a5 {[%emt 0:00:02]} Rf8 {[%emt 0:00:01]} 37. Rb4 {[%emt 0:00:03]} Rfa8 {[%emt 0:00:01]} 38. Bc7 {[%emt 0:00:03]} R8a7 {[%emt 0:00:02]} 39. Bb8 {[%emt 0:00:03]} Rd7 {[%emt 0:00:05]} 40. Be5 {[%emt 0:00:03]} Rxa5 {[%emt 0:00:01]} 41. Rb6 {[%emt 0:00:02]} Ra1+ {[%emt 0:00:03]} 42. Kf2 {[%emt 0:00:02]} Ra2+ {[%emt 0:00:00]} 43. Ke3 {[%emt 0:00:01]} Ra3+ {[%emt 0:00:01]} 44. Kd2 {[%emt 0:00:02]} Rd5 {[%emt 0:00:03]} 45. Re3 {[%emt 0:00:04]} Ra2+ {[%emt 0:00:01]} 46. Kc3 {[%emt 0:00:02]} Ra3+ {[%emt 0:00:02]} 47. Kb4 {[%emt 0:00:01]} Rxe3 {[%emt 0:00:01]} 48. Rb8+ {[%emt 0:00:03]} Kf7 {[%emt 0:00:01]} 49. Rb7+ {[%emt 0:00:02]} Ke6 {[%emt 0:00:06]} 50. Rxg7 {[%emt 0:00:01]} Re2 {[%emt 0:00:02]} 51. Ka4 {[%emt 0:00:04]} Rd8 {[%emt 0:00:03]} 52. h4 {[%emt 0:00:04]} Rb8 {[%emt 0:00:03]} 53. Rxh7 {[%emt 0:00:02]} Ra2# {[%emt 0:00:01] (Lag: Av=0.52s, max=1.8s)} 0-1

[Event "Is Bankasi Online Satranc Turn 17-18 YAS"]
[Site "T#646243Mustafa Kemal"]
[Date "2020.05.22"]
[Round "5"]
[White "Orhanerenkarab68"]
[Black "emreerdal60"]
[Result "1-0"]
[WhiteElo "1583"]
[BlackElo "1639"]
[Annotator "NA RC"]
[PlyCount "97"]
[EventDate "2020.05.22"]
[EventType "swiss (blitz)"]
[TimeControl "180+2"]

1. e4 {[%emt 0:00:03]} c6 {[%emt 0:00:01]} 2. Nf3 {[%emt 0:00:01]} d5 {[%emt 0:00:02]} 3. exd5 {[%emt 0:00:01]} cxd5 {[%emt 0:00:02]} 4. d4 {[%emt 0:00:01]} Nf6 {[%emt 0:00:01]} 5. c4 {[%emt 0:00:01]} Nc6 {[%emt 0:00:02]} 6. Nc3 {[%emt 0:00:02]} Bg4 {[%emt 0:00:02]} 7. cxd5 {[%emt 0:00:02]} Nxd5 {[%emt 0:00:02]} 8. Nxd5 {[%emt 0:00:01]} Qxd5 {[%emt 0:00:01]} 9. Be3 {[%emt 0:00:01]} Bxf3 {[%emt 0:00:25]} 10. Qxf3 {[%emt 0:00:04]} Qxf3 {[%emt 0:00:01]} 11. gxf3 {[%emt 0:00:00]} e6 {[%emt 0:00:00]} 12. Bb5 {[%emt 0:00:03]} Bb4+ {[%emt 0:00:02]} 13. Ke2 {[%emt 0:00:03]} O-O {[%emt 0:00:12]} 14. a3 {[%emt 0:00:05]} Ba5 {[%emt 0:00:03]} 15. b4 {[%emt 0:00:01]} Bb6 {[%emt 0:00:02]} 16. Rhd1 {[%emt 0:00:03]} Rfd8 {[%emt 0:00:04]} 17. Bxc6 {[%emt 0:00:04]} bxc6 {[%emt 0:00:02]} 18. Rac1 {[%emt 0:00:01]} Rac8 {[%emt 0:00:13]} 19. a4 {[%emt 0:00:02]} a5 {[%emt 0:00:19]} 20. bxa5 {[%emt 0:00:06]} Bxa5 {[%emt 0:00:01]} 21. Rc2 {[%emt 0:00:01]} Bb6 {[%emt 0:00:45]} 22. Kd3 {[%emt 0:00:06]} c5 {[%emt 0:00:07]} 23. Ke4 {[%emt 0:00:06]} c4 {[%emt 0:00:05]} 24. d5 {[%emt 0:00:11]} exd5+ {[%emt 0:00:17]} 25. Rxd5 {[%emt 0:00:03]} Re8+ {[%emt 0:00:02]} 26. Re5 {[%emt 0:00:03]} Rxe5+ {[%emt 0:00:06]} 27. Kxe5 {[%emt 0:00:03]} Bc7+ {[%emt 0:00:06]} 28. Ke4 {[%emt 0:00:09]} Bxh2 {[%emt 0:00:03]} 29. a5 {[%emt 0:00:04]} h5 {[%emt 0:00:12]} 30. a6 {[%emt 0:00:06]} Ra8 {[%emt 0:00:02]} 31. a7 {[%emt 0:00:03]} h4 {[%emt 0:00:05]} 32. Rxc4 {[%emt 0:00:01]} Kh7 {[%emt 0:00:04]} 33. Rc1 {[%emt 0:00:02]} Bc7 {[%emt 0:00:13]} 34. Rxc7 {[%emt 0:00:03]} Kg6 {[%emt 0:00:05]} 35. Rc6+ {[%emt 0:00:11]} f6 {[%emt 0:00:02]} 36. Kf4 {[%emt 0:00:04]} h3 {[%emt 0:00:11]} 37. Kg3 {[%emt 0:00:01]} Rh8 {[%emt 0:00:02]} 38. Rc1 {[%emt 0:00:08]} Kf7 {[%emt 0:00:04]} 39. Rh1 {[%emt 0:00:02]} g5 {[%emt 0:00:02]} 40. Rxh3 {[%emt 0:00:01]} Ra8 {[%emt 0:00:01]} 41. f4 {[%emt 0:00:03]} gxf4+ {[%emt 0:00:03]} 42. Kxf4 {[%emt 0:00:02]} Ke6 {[%emt 0:00:01]} 43. Rh5 {[%emt 0:00:05]} Rg8 {[%emt 0:00:02]} 44. Rb5 {[%emt 0:00:03]} f5 {[%emt 0:00:08]} 45. Rb8 {[%emt 0:00:01]} Rg4+ {[%emt 0:00:01]} 46. Kf3 {[%emt 0:00:01]} f4 {[%emt 0:00:01]} 47. Kxg4 {[%emt 0:00:10]} fxe3 {[%emt 0:00:01]} 48. fxe3 {[%emt 0:00:03]} Ke5 {[%emt 0:00:02] emreerdal60 resigns} 49. a8=Q {[%emt 0:00:01] (Lag: Av=0.98s, max=1.4s)} 1-0

[Event "Is Bankasi Online Satranc Turn 17-18 YAS"]
[Site "T#646243Mustafa Kemal"]
[Date "2020.05.22"]
[Round "5"]
[White "Ibrahimisik76"]
[Black "Bugrahansahin14"]
[Result "1-0"]
[WhiteElo "1520"]
[BlackElo "1583"]
[Annotator "NA RC"]
[PlyCount "53"]
[EventDate "2020.05.22"]
[EventType "swiss (blitz)"]
[TimeControl "180+2"]

1. e4 {[%emt 0:00:03]} e5 {[%emt 0:00:02]} 2. Nf3 {[%emt 0:00:03]} Nc6 {[%emt 0:00:01]} 3. Be2 {[%emt 0:00:01]} Bc5 {[%emt 0:00:03]} 4. d3 {[%emt 0:00:01]} h6 {[%emt 0:00:03]} 5. Nc3 {[%emt 0:00:01]} Nf6 {[%emt 0:00:01]} 6. Be3 {[%emt 0:00:01]} b6 {[%emt 0:00:10]} 7. Qd2 {[%emt 0:00:03]} d6 {[%emt 0:00:02]} 8. h3 {[%emt 0:00:02]} Nb4 {[%emt 0:00:06]} 9. a3 {[%emt 0:00:04]} Nc6 {[%emt 0:00:04]} 10. g4 {[%emt 0:00:16]} Be6 {[%emt 0:00:13]} 11. g5 {[%emt 0:00:02]} Bxe3 {[%emt 0:00:12]} 12. fxe3 {[%emt 0:00:03]} Nh5 {[%emt 0:00:09]} 13. gxh6 {[%emt 0:00:03]} Rxh6 {[%emt 0:00:02]} 14. O-O-O {[%emt 0:00:02]} Nf6 {[%emt 0:00:09]} 15. d4 {[%emt 0:00:02]} exd4 {[%emt 0:00:02]} 16. exd4 {[%emt 0:00:01]} Rxh3 {[%emt 0:00:04]} 17. d5 {[%emt 0:00:07]} Rxh1 {[%emt 0:00:08]} 18. Rxh1 {[%emt 0:00:02]} Bxd5 {[%emt 0:00:27]} 19. exd5 {[%emt 0:00:05]} Ne7 {[%emt 0:00:02]} 20. Bb5+ {[%emt 0:00:08]} Kf8 {[%emt 0:00:04]} 21. Ng5 {[%emt 0:00:10]} a6 {[%emt 0:00:09]} 22. Bc6 {[%emt 0:00:06]} Rb8 {[%emt 0:00:05]} 23. Qf4 {[%emt 0:00:14]} Nxc6 {[%emt 0:00:16]} 24. dxc6 {[%emt 0:00:03]} Qe7 {[%emt 0:00:14]} 25. Nd5 {[%emt 0:00:19]} Qe2 {[%emt 0:00:15]} 26. Rh8+ {[%emt 0:00:06]} Ng8 {[%emt 0:00:03]} 27. Qxf7# {[%emt 0:00:02] (Lag: Av=0.67s, max=0.8s)} 1-0

[Event "Is Bankasi Online Satranc Turn 17-18 YAS"]
[Site "T#646243Mustafa Kemal"]
[Date "2020.05.22"]
[Round "5"]
[White "batuhantasagil42"]
[Black "Ahmetozer26"]
[Result "1-0"]
[WhiteElo "1469"]
[BlackElo "1427"]
[Annotator "NA RC"]
[PlyCount "49"]
[EventDate "2020.05.22"]
[EventType "swiss (blitz)"]
[TimeControl "180+2"]

1. d4 {[%emt 0:00:13]} d5 {[%emt 0:00:02]} 2. c4 {[%emt 0:00:02]} Nf6 {[%emt 0:00:02]} 3. Nc3 {[%emt 0:00:02]} Bf5 {[%emt 0:00:05]} 4. Bg5 {[%emt 0:00:04]} e6 {[%emt 0:00:04]} 5. cxd5 {[%emt 0:00:03]} exd5 {[%emt 0:00:01]} 6. Qa4+ {[%emt 0:00:10]} Nc6 {[%emt 0:00:08]} 7. Bxf6 {[%emt 0:00:07]} gxf6 {[%emt 0:00:08]} 8. f3 {[%emt 0:00:07]} Be7 {[%emt 0:00:04]} 9. e4 {[%emt 0:00:04]} dxe4 {[%emt 0:00:06]} 10. fxe4 {[%emt 0:00:03]} Bd7 {[%emt 0:00:03]} 11. O-O-O {[%emt 0:00:03]} f5 {[%emt 0:00:26]} 12. d5 {[%emt 0:00:05]} Ne5 {[%emt 0:00:06]} 13. Qd4 {[%emt 0:00:10]} Ng6 {[%emt 0:00:19]} 14. Bd3 {[%emt 0:00:13]} fxe4 {[%emt 0:00:13]} 15. Bxe4 {[%emt 0:00:01]} Rg8 {[%emt 0:00:02]} 16. Nf3 {[%emt 0:00:03]} Bd6 {[%emt 0:00:07]} 17. Bxg6 {[%emt 0:00:08]} hxg6 {[%emt 0:00:10]} 18. Rhe1+ {[%emt 0:00:04]} Kf8 {[%emt 0:00:10]} 19. h4 {[%emt 0:00:16]} Be7 {[%emt 0:00:16]} 20. g3 {[%emt 0:00:03]} c6 {[%emt 0:00:20]} 21. Qf4 {[%emt 0:00:14]} cxd5 {[%emt 0:00:14]} 22. Nxd5 {[%emt 0:00:08]} g5 {[%emt 0:00:10]} 23. hxg5 {[%emt 0:00:25]} Rxg5 {[%emt 0:00:09]} 24. Ne5 {[%emt 0:00:13]} Rg8 {[%emt 0:00:20]} 25. Qxf7# {[%emt 0:00:06] (Lag: Av=0.96s, max=1.6s)} 1-0

[Event "Is Bankasi Online Satranc Turn 17-18 YAS"]
[Site "T#646243Mustafa Kemal"]
[Date "2020.05.22"]
[Round "5"]
[White "Mahmutemrekord40"]
[Black "Mehmetkozak72"]
[Result "0-1"]
[WhiteElo "1352"]
[BlackElo "1352"]
[Annotator "NA RC"]
[PlyCount "94"]
[EventDate "2020.05.22"]
[EventType "swiss (blitz)"]
[TimeControl "180+2"]

1. e4 {[%emt 0:00:05]} c5 {[%emt 0:00:02]} 2. Nc3 {[%emt 0:00:05]} d6 {[%emt 0:00:02]} 3. Nf3 {[%emt 0:00:01]} Nc6 {[%emt 0:00:01]} 4. a3 {[%emt 0:00:05]} e5 {[%emt 0:00:01]} 5. b4 {[%emt 0:00:03]} b5 {[%emt 0:00:03]} 6. bxc5 {[%emt 0:00:01]} dxc5 {[%emt 0:00:02]} 7. Nxb5 {[%emt 0:00:08]} Rb8 {[%emt 0:00:01]} 8. Nxa7 {[%emt 0:00:04]} Nxa7 {[%emt 0:00:02]} 9. g3 {[%emt 0:00:07]} Nf6 {[%emt 0:00:06]} 10. Nh4 {[%emt 0:00:01]} Bg4 {[%emt 0:00:03]} 11. f3 {[%emt 0:00:03]} Be6 {[%emt 0:00:01]} 12. Nf5 {[%emt 0:00:06]} Bxf5 {[%emt 0:00:02]} 13. exf5 {[%emt 0:00:01]} Bd6 {[%emt 0:00:07]} 14. Qe2 {[%emt 0:00:02]} Qd7 {[%emt 0:00:02]} 15. f4 {[%emt 0:00:02]} Qxf5 {[%emt 0:00:03]} 16. Bb2 {[%emt 0:00:12]} Rxb2 {[%emt 0:00:04]} 17. g4 {[%emt 0:00:13]} Qxg4 {[%emt 0:00:05]} 18. Qxg4 {[%emt 0:00:02]} Nxg4 {[%emt 0:00:00]} 19. Be2 {[%emt 0:00:11]} h5 {[%emt 0:00:05]} 20. O-O {[%emt 0:00:03]} exf4 {[%emt 0:00:05]} 21. Bxg4 {[%emt 0:00:05]} hxg4 {[%emt 0:00:01]} 22. Kh1 {[%emt 0:00:02]} Rxc2 {[%emt 0:00:10]} 23. Rad1 {[%emt 0:00:02]} Nc6 {[%emt 0:00:09]} 24. Rfe1+ {[%emt 0:00:02]} Kd7 {[%emt 0:00:01]} 25. Rf1 {[%emt 0:00:02]} g5 {[%emt 0:00:02]} 26. Rg1 {[%emt 0:00:05]} f5 {[%emt 0:00:02]} 27. h3 {[%emt 0:00:02]} Rxh3+ {[%emt 0:00:04]} 28. Kg2 {[%emt 0:00:03]} f3+ {[%emt 0:00:01]} 29. Kf2 {[%emt 0:00:05]} Be5 {[%emt 0:00:08]} 30. Rdf1 {[%emt 0:00:09]} Bd4+ {[%emt 0:00:02]} 31. Ke1 {[%emt 0:00:07]} Bxg1 {[%emt 0:00:01]} 32. Rxg1 {[%emt 0:00:02]} Rh2 {[%emt 0:00:07]} 33. Kd1 {[%emt 0:00:09]} Rcxd2+ {[%emt 0:00:06]} 34. Kc1 {[%emt 0:00:05]} f2 {[%emt 0:00:03]} 35. Rf1 {[%emt 0:00:01]} Re2 {[%emt 0:00:09]} 36. Kd1 {[%emt 0:00:03]} Re1+ {[%emt 0:00:01]} 37. Rxe1 {[%emt 0:00:07]} fxe1=Q+ {[%emt 0:00:00]} 38. Kxe1 {[%emt 0:00:01]} g3 {[%emt 0:00:00]} 39. Kf1 {[%emt 0:00:01]} Ra2 {[%emt 0:00:03]} 40. Kg1 {[%emt 0:00:04]} f4 {[%emt 0:00:03]} 41. a4 {[%emt 0:00:07]} f3 {[%emt 0:00:03]} 42. Kf1 {[%emt 0:00:03]} g2+ {[%emt 0:00:02]} 43. Kg1 {[%emt 0:00:04]} Ra1+ {[%emt 0:00:07]} 44. Kf2 {[%emt 0:00:02]} g1=Q+ {[%emt 0:00:01]} 45. Kxf3 {[%emt 0:00:02]} Ra3+ {[%emt 0:00:01]} 46. Ke2 {[%emt 0:00:02]} Qg2+ {[%emt 0:00:02]} 47. Kd1 {[%emt 0:00:07]} Ra1# {[%emt 0:00:00] (Lag: Av=0.41s, max=0.8s)} 0-1

[Event "Is Bankasi Online Satranc Turn 17-18 YAS"]
[Site "T#646243Mustafa Kemal"]
[Date "2020.05.22"]
[Round "6"]
[White "Hakansimsek70"]
[Black "Emrecankaratas76"]
[Result "1-0"]
[WhiteElo "1727"]
[BlackElo "1713"]
[Annotator "NA RC"]
[PlyCount "53"]
[EventDate "2020.05.22"]
[EventType "swiss (blitz)"]
[TimeControl "180+2"]

1. e4 {[%emt 0:00:02]} e5 {[%emt 0:00:04]} 2. Nf3 {[%emt 0:00:02]} Nc6 {[%emt 0:00:02]} 3. Bb5 {[%emt 0:00:02]} Nf6 {[%emt 0:00:03]} 4. d3 {[%emt 0:00:07]} d6 {[%emt 0:00:02]} 5. h3 {[%emt 0:00:05]} Be7 {[%emt 0:00:02]} 6. O-O {[%emt 0:00:02]} a6 {[%emt 0:00:01]} 7. Ba4 {[%emt 0:00:06]} b5 {[%emt 0:00:02]} 8. Bb3 {[%emt 0:00:01]} Na5 {[%emt 0:00:02]} 9. c3 {[%emt 0:00:02]} Nxb3 {[%emt 0:00:01]} 10. Qxb3 {[%emt 0:00:00]} O-O {[%emt 0:00:12]} 11. Re1 {[%emt 0:00:08]} Bb7 {[%emt 0:00:16]} 12. a4 {[%emt 0:00:09]} Qd7 {[%emt 0:00:07]} 13. axb5 {[%emt 0:00:05]} axb5 {[%emt 0:00:08]} 14. Rxa8 {[%emt 0:00:03]} Rxa8 {[%emt 0:00:00]} 15. Ng5 {[%emt 0:00:12]} Bd8 {[%emt 0:00:12]} 16. f4 {[%emt 0:00:10]} h6 {[%emt 0:00:02]} 17. Nf3 {[%emt 0:00:09]} exf4 {[%emt 0:00:06]} 18. Bxf4 {[%emt 0:00:02]} c5 {[%emt 0:00:07]} 19. Nbd2 {[%emt 0:00:12]} Nh5 {[%emt 0:00:10]} 20. Bh2 {[%emt 0:00:03]} d5 {[%emt 0:00:28]} 21. exd5 {[%emt 0:00:10]} Bxd5 {[%emt 0:00:00]} 22. c4 {[%emt 0:00:03]} bxc4 {[%emt 0:00:07]} 23. dxc4 {[%emt 0:00:01]} Bc6 {[%emt 0:00:18]} 24. Rd1 {[%emt 0:00:33]} Bxf3 {[%emt 0:00:04]} 25. Nxf3 {[%emt 0:00:01]} Qe6 {[%emt 0:00:12]} 26. Re1 {[%emt 0:00:06]} Qf5 {[%emt 0:00:22]} 27. g4 {[%emt 0:00:11] Zaman (Lag: Av=0.50s, max=0.9s)} 1-0

[Event "Is Bankasi Online Satranc Turn 17-18 YAS"]
[Site "T#646243Mustafa Kemal"]
[Date "2020.05.22"]
[Round "6"]
[White "Mustafaberkayb82"]
[Black "Ozgurkazak62"]
[Result "1-0"]
[WhiteElo "1597"]
[BlackElo "1574"]
[Annotator "NA RC"]
[PlyCount "21"]
[EventDate "2020.05.22"]
[EventType "swiss (blitz)"]
[TimeControl "180+2"]

1. e4 {[%emt 0:00:05]} e5 {[%emt 0:00:02]} 2. Nf3 {[%emt 0:00:02]} Nc6 {[%emt 0:00:18]} 3. Nc3 {[%emt 0:00:03]} Nf6 {[%emt 0:00:08]} 4. d4 {[%emt 0:00:03]} exd4 {[%emt 0:00:02]} 5. Nxd4 {[%emt 0:00:00]} Nxd4 {[%emt 0:00:02]} 6. Qxd4 {[%emt 0:00:00]} d6 {[%emt 0:00:02]} 7. Bg5 {[%emt 0:00:02]} Be7 {[%emt 0:00:02]} 8. O-O-O {[%emt 0:00:05]} h6 {[%emt 0:00:02]} 9. Bh4 {[%emt 0:00:03]} c5 {[%emt 0:00:08]} 10. Qa4+ {[%emt 0:00:25]} Qd7 {[%emt 0:00:08]} 11. Bb5 {[%emt 0:00:10] Ozgurkazak62 resigns (Lag: Av=0.57s, max=0.7s)} 1-0